[Event "20th Heraklion IT Open 2017"]
[Site "Heraklion"]
[Date "2017.04.23"]
[Round "8"]
[White "Fragiadakis, Emanouel"]
[Black "Hristodoulaki, Antonia"]
[Result "1/2-1/2"]
[ECO "E04"]
[WhiteElo "1827"]
[BlackElo "1994"]
[Annotator "NA RC"]
[PlyCount "119"]
[EventDate "2017.??.??"]
[EventType "swiss"]
[EventCountry "GRE"]
[SourceTitle "playchess.com"]
[Source "ChessBase"]
[SourceQuality "1"]
[TimeControl "40/5400+30:1800+30"]

{[%evp 8,119,12,32767,25,32767,0,32767,32767,0,0,32767,32767,32767,-33,32767,-74,-68,-26,-43,-14,-94,32767,-68,0,32767,-6,32767,0,32767,0,-42,32767,32767,32767,-16,32767,32767,32767,-12,32767,0,0,-203,32767,-235,-240,-267,-260,-255,-232,-247,-239,-268,-243,-353,-264,-266,-262,-702,32767,32767,-244,-485,-291,32767,-239,32767,-85,32767,32767,32767,32767,32767,32767,32767,32767,32767,-81,32767,32767,32767,-111,32767,32767,-114,32767,32767,-87,32767,32767,32767,32767,32767,-91,32767,-76,-79,-77,-79,-80,-87,-74,-67,-74,32767,-74,-67,32767,32767,-70,32767,-35,-56]} 1. d4 {[%emt 0:04:18]} Nf6 {[%emt 0:06:41]} 2. c4 {[%emt 0:00:10]} e6 {[%emt 0:00:08]} 3. Nf3 {[%emt 0:01:23]} d5 {[%emt 0:00:14]} 4. g3 {[%emt 0:00:06]} dxc4 {[%emt 0:00:34]} 5. Bg2 {[%emt 0:00:09]} Bd7 {[%emt 0:00:39]} 6. Qc2 {[%emt 0:02:37]} c5 {[%emt 0:02:27]} 7. Qxc4 {[%emt 0:01:14]} Bc6 {[%emt 0:01:41]} 8. O-O {[%emt 0:05:16] E04: Open Catalan: 5 Nf3} Nbd7 {[%emt 0:10:31] LiveBook: 25 Games} 9. Bg5 {[%emt 0:19:23]} (9. Nc3 Rc8 10. Be3 b5 11. Qd3 b4 12. Nb1 c4 13. Qc2 Be7 14. a3 b3 15. Qc1 Nb6 {0-1 (34) Radjabov,T (2745)-Anand,V (2783) Stavanger 2013}) 9... Rc8 {[%emt 0:27:29]} 10. dxc5 $146 {[%emt 0:07:06]} (10. Rc1 Be7 11. Nc3 O-O 12. dxc5 b5 13. Nxb5 Bxf3 14. Bxf6 Bxf6 15. Bxf3 Bxb2 {0-1 (29) Hovmoller,K (2289)-Pedersen,S (2375) Denmark 2017}) 10... Bxc5 {[%emt 0:10:28]} 11. Qh4 {[%emt 0:02:03]} Qb6 {[%emt 0:04:11]} 12. Nbd2 {[%emt 0:09:45]} O-O {[%emt 0:09:30]} ({Better is} 12... Qxb2 $17 13. a3 Qb6) 13. Nc4 {[%emt 0:03:01]} Qa6 {[%emt 0:01:35]} 14. Nfe5 {[%emt 0:17:32]} (14. Nce5 $11) 14... Bb5 {[%emt 0:06:46]} (14... Bxg2 $17 15. Kxg2 b5 16. Bxf6 Nxf6) 15. b3 {[%emt 0:08:40]} (15. Rfd1 $11) 15... h6 {[%emt 0:03:12]} 16. Bxf6 {[%emt 0:09:39]} Nxf6 {[%emt 0:00:32]} 17. a4 {[%emt 0:00:18]} Bxc4 {[%emt 0:01:46]} 18. Nxc4 {[%emt 0:00:28]} Rfd8 {[%emt 0:01:08]} 19. Rfd1 {[%emt 0:00:36]} b5 {[%emt 0:02:28]} 20. axb5 {[%emt 0:03:17]} Qxb5 {[%emt 0:00:02]} 21. Rdb1 {[%emt 0:00:38]} Bd4 {[%emt 0:04:33]} 22. Ra5 {[%emt 0:00:48]} Qb4 {[%emt 0:00:44]} 23. Ra4 {[%emt 0:00:31]} Qc3 {[%emt 0:00:36]} 24. Qf4 $1 {[%emt 0:01:08]} Qc2 {[%emt 0:01:44]} 25. Qc1 $2 {[%emt 0:01:17]} (25. Na3 $11 Qc5 26. e3) 25... Qxe2 {[%emt 0:00:39]} 26. Qf1 {[%emt 0:00:02]} Qc2 {[%emt 0:01:32]} 27. Bf3 {[%emt 0:00:11] [#]} Bxf2+ $1 {[%emt 0:00:33]} 28. Kh1 {[%emt 0:00:03]} Bc5 {[%emt 0:01:01]} 29. Rb2 {[%emt 0:01:06]} Qf5 {[%emt 0:00:44]} 30. Ra5 {[%emt 0:00:25]} Nd5 {[%emt 0:00:29]} 31. Qe2 {[%emt 0:00:55]} (31. Bg2 {might work better.}) 31... Qg5 {[%emt 0:00:35]} 32. Rc2 {[%emt 0:00:49]} Nb4 {[%emt 0:00:31]} 33. Rb2 $2 {[%emt 0:00:44]} (33. Rd2) 33... Qc1+ {[%emt 0:00:38]} 34. Kg2 {[%emt 0:00:01]} Qg1+ $2 {[%emt 0:00:26]} (34... Nd3 35. Rxc5 Rxc5) 35. Kh3 {[%emt 0:00:06]} Nd5 {[%emt 0:00:33]} 36. Rd2 {[%emt 0:00:35]} Bb6 {[%emt 0:00:32]} 37. Rd1 {[%emt 0:00:58]} Qf2 $2 {[%emt 0:00:20]} (37... Nc3 $19 {and Black stays clearly on top.} 38. Rxg1 Nxe2 39. Bxe2 Bxg1) 38. Qxf2 {[%emt 0:00:16]} Bxf2 {[%emt 0:00:02]} 39. Bxd5 {[%emt 0:01:12]} exd5 {[%emt 0:00:02]} 40. Rdxd5 {[%emt 0:00:00]} Rxd5 {[%emt 0:01:35]} 41. Rxd5 {[%emt 0:00:40]} Rb8 {[%emt 0:00:16]} 42. Kg2 {[%emt 0:10:10]} Be1 {[%emt 0:03:25]} 43. Kf1 {[%emt 0:00:16]} Bc3 {[%emt 0:01:14]} 44. Ke2 {[%emt 0:00:12]} Rxb3 {[%emt 0:07:24]} 45. Rd3 {[%emt 0:00:08]} a5 {[%emt 0:00:23]} 46. Kd1 {[%emt 0:03:18]} a4 {[%emt 0:01:29]} 47. Kc2 {[%emt 0:00:14]} Bf6 {[%emt 0:01:01]} 48. Rxb3 {[%emt 0:00:21]} axb3+ {[%emt 0:00:12]} 49. Kxb3 {[%emt 0:00:07]} Kh7 {[%emt 0:00:35]} 50. Kc2 {[%emt 0:01:33]} Bd4 {[%emt 0:01:05]} 51. Kd3 {[%emt 0:00:23]} Bg1 {[%emt 0:00:09]} 52. h3 {[%emt 0:00:28]} Bh2 {[%emt 0:00:13]} 53. g4 {[%emt 0:00:48] [#]} h5 $1 {[%emt 0:01:39]} 54. Ke4 {[%emt 0:01:01]} Kg6 {[%emt 0:00:23]} 55. Nd2 $1 {[%emt 0:02:11]} Bc7 {[%emt 0:03:03]} 56. Nf3 {[%emt 0:00:22]} Bg3 {[%emt 0:01:28]} 57. Ng1 {[%emt 0:03:47]} Kf6 {[%emt 0:04:38]} 58. Nf3 {[%emt 0:02:42]} g6 {[%emt 0:01:33]} 59. Kd4 {[%emt 0:01:06]} Ke6 {[%emt 0:02:38]} 60. Ng5+ $15 {[%emt 0:02:47] Kd5+} 1/2-1/2

[Event "20th Heraklion IT Open 2017"]
[Site "Heraklion"]
[Date "2017.04.23"]
[Round "8"]
[White "Pelantakis, Mihail"]
[Black "Mardoyan Ararat, T  Artur"]
[Result "1-0"]
[ECO "E16"]
[WhiteElo "1737"]
[BlackElo "1502"]
[Annotator "NA"]
[PlyCount "61"]
[EventDate "2017.??.??"]
[EventType "swiss"]
[EventCountry "GRE"]
[SourceTitle "playchess.com"]
[Source "ChessBase"]
[SourceQuality "1"]
[TimeControl "40/5400+30:1800+30"]

1. d4 {[%emt 0:00:00]} Nf6 {[%emt 0:00:33]} 2. c4 {[%emt 0:00:00]} e6 {[%emt 0:00:06]} 3. Nf3 {[%emt 0:00:00]} b6 {[%emt 0:00:18]} 4. g3 {[%emt 0:00:00]} Bb7 {[%emt 0:00:05]} 5. Bg2 {[%emt 0:00:03]} Bb4+ {[%emt 0:03:26]} 6. Bd2 {[%emt 0:00:12]} Qe7 {[%emt 0:00:08]} 7. O-O {[%emt 0:00:34]} O-O {[%emt 0:01:01]} 8. Nc3 {[%emt 0:01:01]} d5 {[%emt 0:01:20]} 9. cxd5 {[%emt 0:01:24]} Bxc3 {[%emt 0:02:05]} 10. Bxc3 {[%emt 0:01:36]} Bxd5 {[%emt 0:00:53]} 11. Rc1 {[%emt 0:14:06]} Ne4 {[%emt 0:01:43]} 12. a3 {[%emt 0:21:06]} Nxc3 {[%emt 0:01:06]} 13. Rxc3 {[%emt 0:00:10]} a5 {[%emt 0:13:28]} 14. Ne5 {[%emt 0:20:34]} Bxg2 {[%emt 0:06:36]} 15. Kxg2 {[%emt 0:00:12]} f6 {[%emt 0:01:48]} 16. Nd3 {[%emt 0:04:50]} Rd8 {[%emt 0:00:47]} 17. e3 {[%emt 0:01:12]} Na6 {[%emt 0:04:19]} 18. Qc2 {[%emt 0:02:31]} Rac8 {[%emt 0:01:57]} 19. Rc1 {[%emt 0:00:49]} Rd7 {[%emt 0:02:10]} 20. Qa4 {[%emt 0:03:19]} Rd5 {[%emt 0:25:22]} 21. b4 {[%emt 0:03:52]} Qd7 {[%emt 0:01:47]} 22. Qxd7 {[%emt 0:03:19]} Rxd7 {[%emt 0:00:03]} 23. bxa5 {[%emt 0:04:47]} bxa5 {[%emt 0:00:04]} 24. Rc6 {[%emt 0:00:10]} e5 {[%emt 0:00:53]} 25. Rxa6 {[%emt 0:01:10]} exd4 {[%emt 0:01:30]} 26. exd4 {[%emt 0:00:14]} Rxd4 {[%emt 0:00:07]} 27. Nc5 {[%emt 0:00:59]} a4 {[%emt 0:07:22]} 28. Nxa4 {[%emt 0:00:46]} Rd2 {[%emt 0:01:48]} 29. Nb6 {[%emt 0:01:22]} Re8 {[%emt 0:00:30]} 30. Rxc7 {[%emt 0:00:12]} h6 {[%emt 0:00:02]} 31. Raa7 {[%emt 0:03:43]} 1-0

[Event "20th Heraklion IT Open 2017"]
[Site "Heraklion"]
[Date "2017.04.23"]
[Round "8"]
[White "Papidakis, Georgios"]
[Black "Sourgkounis, Angelos"]
[Result "0-1"]
[ECO "A46"]
[WhiteElo "1618"]
[BlackElo "1960"]
[Annotator "NA RC"]
[PlyCount "70"]
[EventDate "2017.??.??"]
[EventType "swiss"]
[EventCountry "GRE"]
[SourceTitle "playchess.com"]
[Source "ChessBase"]
[SourceQuality "1"]
[TimeControl "40/5400+30:1800+30"]

{[%evp 8,67,53,32767,51,45,58,32767,32767,32767,32767,32767,32767,16,16,-79,32767,32767,32767,32767,-43,32767,32767,32767,-80,-66,32767,32767,-131,-135,-131,32767,-73,32767,32767,-112,-116,32767,-147,-279,32767,32767,-276,32767,-432,-423,-329,-652,32767,-497,32767,-456,-429,-811,-970,-1247,-1110,-1270,32767,-29990,-29993,-29997]} 1. d4 {[%emt 0:00:00]} Nf6 {[%emt 0:01:45]} 2. Nf3 {[%emt 0:00:00]} d6 {[%emt 0:01:35]} 3. Bg5 {[%emt 0:00:23]} Ne4 {[%emt 0:01:58]} 4. Bh4 {[%emt 0:03:37] A46: 1 d4 Nf6 2 Nf3 e6: Torre, London and Colle Systems} c6 {[%emt 0:04:38]} (4... c5 5. dxc5 Nxc5 6. c4 Nc6 7. Nc3 g6 8. Qd2 Bg7 9. e3 O-O 10. Be2 b6 11. O-O Bb7 {½-½ (44) Debashis,D (2477)-Ganguly,S (2623) Dubai 2013}) 5. Nbd2 {[%emt 0:01:37]} Bf5 {[%emt 0:02:28]} 6. e3 {[%emt 0:03:17]} Qb6 {[%emt 0:03:33]} 7. Nc4 $146 {[%emt 0:07:21]} (7. Rb1 Nd7 8. Nxe4 Bxe4 9. Bd3 Bxf3 10. Qxf3 g5 11. Bg3 h5 {1-0 (32) Stava,S (1568)-Johansen,P (1937) Kragero 2005}) 7... Qc7 {[%emt 0:01:49]} 8. Bd3 {[%emt 0:01:45]} d5 {[%emt 0:02:47]} 9. Ncd2 {[%emt 0:00:15]} Nd7 {[%emt 0:06:23]} 10. O-O {[%emt 0:15:54]} e6 {[%emt 0:00:44]} 11. c3 {[%emt 0:01:11]} (11. Bxe4 $14 {stays ahead.} dxe4 12. Bg3) 11... Bd6 {[%emt 0:00:44]} 12. Be2 {[%emt 0:04:29]} h6 {[%emt 0:01:47]} 13. Rc1 {[%emt 0:03:49]} b5 {[%emt 0:16:00]} 14. Bg3 {[%emt 0:04:31]} Nxg3 {[%emt 0:01:53]} 15. hxg3 {[%emt 0:00:10]} O-O {[%emt 0:03:00]} 16. Ne1 {[%emt 0:10:29]} e5 {[%emt 0:04:06]} 17. Bd3 {[%emt 0:11:59]} e4 {[%emt 0:02:15]} 18. Be2 {[%emt 0:00:02]} Be6 {[%emt 0:03:21]} 19. Nc2 {[%emt 0:09:54]} Qd8 {[%emt 0:02:55]} 20. Nb4 {[%emt 0:05:04]} Rc8 {[%emt 0:01:43]} 21. Nc2 {[%emt 0:03:55]} Qg5 {[%emt 0:01:44]} 22. b3 {[%emt 0:01:51]} Nf6 {[%emt 0:01:36]} 23. Re1 {[%emt 0:02:12]} (23. c4 $142) 23... h5 {[%emt 0:02:16]} 24. Nf1 {[%emt 0:03:44]} g6 {[%emt 0:03:59]} 25. a4 {[%emt 0:01:21]} bxa4 {[%emt 0:00:48]} 26. bxa4 {[%emt 0:00:02]} Kg7 {[%emt 0:00:11]} 27. Rb1 $2 {[%emt 0:01:19]} (27. Nh2) 27... Rh8 {[%emt 0:01:16]} 28. Ba6 {[%emt 0:01:44]} Rb8 {[%emt 0:01:23]} 29. Rxb8 {[%emt 0:00:49]} Bxb8 {[%emt 0:00:05]} ({Resist} 29... Rxb8 30. c4 $19) 30. Be2 $2 {[%emt 0:00:05]} (30. f3) 30... h4 {[%emt 0:00:08]} 31. gxh4 {[%emt 0:00:06]} Qxh4 {[%emt 0:00:41]} 32. f3 {[%emt 0:01:26]} Bg3 {[%emt 0:03:52]} 33. Nxg3 {[%emt 0:00:36]} Qxg3 {[%emt 0:00:02]} 34. Na3 {[%emt 0:01:20]} Rh2 {[%emt 0:03:29]} 35. Bf1 {[%emt 0:00:17]} Qh4 {[%emt 0:00:11]} 0-1

[Event "20th Heraklion IT Open 2017"]
[Site "Heraklion"]
[Date "2017.04.23"]
[Round "8"]
[White "Koutsourakis, Ioannis"]
[Black "Brokalakis - Gounaris, Christos"]
[Result "0-1"]
[ECO "E46"]
[WhiteElo "1543"]
[BlackElo "1773"]
[Annotator "NA RC"]
[PlyCount "96"]
[EventDate "2017.??.??"]
[EventType "swiss"]
[EventCountry "GRE"]
[SourceTitle "playchess.com"]
[Source "ChessBase"]
[SourceQuality "1"]
[TimeControl "40/5400+30:1800+30"]

1. d4 {[%emt 0:00:00]} Nf6 {[%emt 0:01:10]} 2. c4 {[%emt 0:00:00]} e6 {[%emt 0:00:11]} 3. Nc3 {[%emt 0:00:00]} Bb4 {[%emt 0:00:13]} 4. e3 {[%emt 0:00:10]} O-O {[%emt 0:02:27]} 5. Nge2 {[%emt 0:00:11]} d5 {[%emt 0:00:55]} 6. a3 {[%emt 0:00:10]} Be7 {[%emt 0:00:32]} 7. Ng3 {[%emt 0:01:11]} b6 {[%emt 0:02:30]} 8. Bd3 {[%emt 0:03:01]} Bb7 {[%emt 0:01:02]} 9. O-O {[%emt 0:00:35]} Nbd7 {[%emt 0:07:24]} 10. cxd5 {[%emt 0:11:17]} Nxd5 {[%emt 0:04:40]} 11. Nxd5 {[%emt 0:00:30]} exd5 {[%emt 0:00:30]} 12. Bd2 {[%emt 0:03:06]} c5 {[%emt 0:04:42]} 13. Bc3 {[%emt 0:03:48]} c4 {[%emt 0:05:44]} 14. Bc2 {[%emt 0:00:51]} Re8 {[%emt 0:04:01]} 15. Nf5 {[%emt 0:03:58]} Bf8 {[%emt 0:06:21]} 16. Qg4 {[%emt 0:09:17]} g6 {[%emt 0:03:58]} 17. Ng3 {[%emt 0:01:31]} Nf6 {[%emt 0:02:22]} 18. Qf3 {[%emt 0:00:32]} Ne4 {[%emt 0:11:27]} 19. Nxe4 {[%emt 0:03:45]} dxe4 {[%emt 0:00:31]} 20. Qe2 {[%emt 0:04:06]} Bd5 {[%emt 0:02:44]} 21. Qd2 {[%emt 0:03:03]} Bd6 {[%emt 0:02:29]} 22. Bd1 {[%emt 0:04:47]} Qh4 {[%emt 0:02:45]} 23. g3 {[%emt 0:00:14]} Qg5 {[%emt 0:01:42]} 24. Ba4 {[%emt 0:04:29]} Red8 {[%emt 0:06:29]} 25. Rfe1 {[%emt 0:05:00]} a6 {[%emt 0:02:56]} 26. Bd1 {[%emt 0:01:51]} h5 {[%emt 0:04:00]} 27. Be2 {[%emt 0:05:48]} h4 {[%emt 0:00:28]} 28. Bf1 {[%emt 0:00:58]} Kg7 {[%emt 0:00:41]} 29. Bg2 {[%emt 0:04:15]} Rh8 {[%emt 0:02:28]} 30. Qc2 {[%emt 0:06:14]} hxg3 {[%emt 0:04:00]} 31. hxg3 {[%emt 0:01:28]} Rh6 {[%emt 0:05:19]} 32. Qa4 {[%emt 0:08:17]} b5 {[%emt 0:02:38]} 33. Qc2 {[%emt 0:01:19]} Rah8 {[%emt 0:00:12]} 34. Kf1 {[%emt 0:05:33]} Qg4 {[%emt 0:01:12]} 35. Kg1 {[%emt 0:00:47]} Bxg3 {[%emt 0:01:43]} 36. fxg3 {[%emt 0:00:23]} Qxg3 {[%emt 0:00:01]} 37. Kf1 {[%emt 0:00:43]} Rh1+ {[%emt 0:01:28]} 38. Bxh1 {[%emt 0:00:49]} Rxh1+ {[%emt 0:00:04]} 39. Ke2 {[%emt 0:00:07]} Rh2+ {[%emt 0:02:54]} 40. Kd1 {[%emt 0:00:00]} Rxc2 {[%emt 0:00:27]} 41. Kxc2 {[%emt 0:00:09]} Qf2+ {[%emt 0:00:39]} 42. Bd2 {[%emt 0:00:53]} g5 {[%emt 0:04:57]} 43. Rad1 {[%emt 0:01:34]} Kg6 {[%emt 0:06:43]} 44. Kb1 {[%emt 0:03:40]} Be6 {[%emt 0:04:04]} 45. Rf1 {[%emt 0:01:14]} Qe2 {[%emt 0:00:13]} 46. Kc1 {[%emt 0:00:51]} c3 {[%emt 0:01:06]} 47. Bxc3 {[%emt 0:01:58]} Bb3 {[%emt 0:00:06]} 48. Bd2 {[%emt 0:02:10]} Qd3 {[%emt 0:00:48]} 0-1

[Event "20th Heraklion IT Open 2017"]
[Site "Heraklion"]
[Date "2017.04.24"]
[Round "9"]
[White "Moshovakis, Aggelos"]
[Black "Friedel, Marcus"]
[Result "1/2-1/2"]
[ECO "B06"]
[WhiteElo "2030"]
[BlackElo "2182"]
[Annotator "NA"]
[PlyCount "78"]
[EventDate "2017.??.??"]
[EventType "swiss"]
[EventCountry "GRE"]
[SourceTitle "playchess.com"]
[Source "ChessBase"]
[SourceQuality "1"]
[TimeControl "40/5400+30:1800+30"]

1. e4 {[%emt 0:00:00]} g6 {[%emt 0:00:12]} 2. d4 {[%emt 0:00:00]} Bg7 {[%emt 0:00:08]} 3. Nc3 {[%emt 0:00:00]} c6 {[%emt 0:00:12]} 4. Nf3 {[%emt 0:00:00]} d6 {[%emt 0:00:23]} 5. h3 {[%emt 0:00:09]} Nf6 {[%emt 0:00:43]} 6. a4 {[%emt 0:00:31]} O-O {[%emt 0:00:35]} 7. Be3 {[%emt 0:00:10]} Nbd7 {[%emt 0:00:40]} 8. Be2 {[%emt 0:00:22]} e5 {[%emt 0:01:42]} 9. dxe5 {[%emt 0:01:10]} dxe5 {[%emt 0:00:11]} 10. Nd2 {[%emt 0:00:12]} Qe7 {[%emt 0:02:03]} 11. Nc4 {[%emt 0:00:13]} Rd8 {[%emt 0:31:05] B08: Pirc Defence: Classical System} (11... Ne8 12. O-O Nc5 13. Nd6 Nxd6 14. Bxc5 Rd8 15. Qd3 b6 16. Ba3 Bb7 17. Rad1 c5 18. Qe3 Qh4 19. f3 Bh6 {0-1 (38) Gajek,R (2384)-Kovalev,A (2509) Polanica Zdroj 2015}) 12. Qd6 {[%emt 0:00:52]} Bf8 {[%emt 0:01:35] LiveBook: 3 Games [#]} ({Black should try} 12... Qxd6 $14 13. Nxd6 Nf8) 13. O-O-O {[%emt 0:04:47]} ({Better is} 13. Qxe7 $1 $16 Bxe7 14. O-O-O) 13... Qxd6 {[%emt 0:12:07]} 14. Nxd6 {[%emt 0:00:06]} Nb6 {[%emt 0:08:57]} 15. Nxc8 {[%emt 0:06:48]} Rdxc8 {[%emt 0:00:14]} 16. g4 $146 {[%emt 0:11:47]} (16. Rd2 Bb4 17. f3 Bxc3 18. bxc3 Nxa4 19. Rd6 Ne8 20. Rd7 Nc7 {1-0 (42) Capelo,M (1860)-Brujin,H (1460) Sao Paulo 2015}) 16... Bb4 {[%emt 0:13:18]} 17. Na2 {[%emt 0:42:17]} Be7 {[%emt 0:02:24]} 18. a5 {[%emt 0:01:57]} Na4 $1 {[%emt 0:00:24]} 19. f3 {[%emt 0:03:25]} Rd8 {[%emt 0:04:22]} 20. b4 {[%emt 0:02:39]} b6 {[%emt 0:02:09]} 21. Bc4 {[%emt 0:01:34]} bxa5 {[%emt 0:01:23]} 22. Bb3 {[%emt 0:00:14]} ({Not} 22. bxa5 $2 Ba3+ 23. Kb1 Rxd1+ 24. Rxd1 Nb2 $19) 22... Nb6 {[%emt 0:00:23]} 23. bxa5 {[%emt 0:00:16]} Nbd7 {[%emt 0:00:24]} 24. Ba4 {[%emt 0:00:43]} (24. c3 $16) 24... Ba3+ {[%emt 0:06:06]} 25. Kb1 {[%emt 0:00:08]} Rab8+ {[%emt 0:01:30]} 26. Bb3 {[%emt 0:00:08]} c5 {[%emt 0:00:11]} 27. Bc1 {[%emt 0:01:21]} c4 {[%emt 0:03:31]} 28. Bxa3 {[%emt 0:00:07]} cxb3 {[%emt 0:00:04]} 29. Nc1 {[%emt 0:04:25]} bxc2+ {[%emt 0:00:32]} 30. Kxc2 {[%emt 0:00:02]} Rdc8+ {[%emt 0:00:26]} 31. Kd2 {[%emt 0:00:22]} Rb5 {[%emt 0:01:17]} 32. Nd3 {[%emt 0:03:38]} Rxa5 {[%emt 0:00:35]} 33. Bb2 {[%emt 0:00:16]} Ne8 {[%emt 0:03:08]} 34. Ra1 {[%emt 0:00:17]} Rxa1 {[%emt 0:01:21]} 35. Rxa1 {[%emt 0:00:06]} Nd6 $11 {[%emt 0:00:22]} 36. Rxa7 {[%emt 0:01:24]} Nc4+ {[%emt 0:01:01]} 37. Kd1 {[%emt 0:01:01]} Nc5 {[%emt 0:00:45]} 38. Nxc5 {[%emt 0:00:12]} Nxb2+ {[%emt 0:00:09]} 39. Kc2 {[%emt 0:00:04]} Rxc5+ {[%emt 0:00:09]} 1/2-1/2

[Event "20th Heraklion IT Open 2017"]
[Site "Heraklion"]
[Date "2017.04.24"]
[Round "9"]
[White "Sourgkounis, Angelos"]
[Black "Lampadariou, Nikolaos"]
[Result "1/2-1/2"]
[ECO "D02"]
[WhiteElo "1960"]
[BlackElo "1948"]
[Annotator "NA RC"]
[PlyCount "116"]
[EventDate "2017.??.??"]
[EventType "swiss"]
[EventCountry "GRE"]
[SourceTitle "playchess.com"]
[Source "ChessBase"]
[SourceQuality "1"]
[TimeControl "40/5400+30:1800+30"]

{[%evp 10,116,32,31,31,27,30,18,47,22,25,41,36,28,45,45,54,17,85,32767,10,4,0,3,10,-45,-14,-17,-29,-35,32767,32767,-57,-79,-67,-93,-85,-75,32767,32767,-90,32767,32767,-84,32767,32767,-29,32767,-20,-20,32767,-36,32767,32767,32767,-40,32767,32767,32767,32767,32767,32767,0,32767,32767,32767,32767,32767,0,32767,32767,-16,32767,32767,32767,0,0,32767,0,0,0,32767,6,-36,-18,32767,32767,0,0,6,32767,32767,32767,32767,48,64,48,0,32767,45,50,30,27,2,32767,32767,14,7,3]} 1. d4 {[%emt 0:01:00]} d5 {[%emt 0:00:36]} 2. Nf3 {[%emt 0:00:07]} c6 {[%emt 0:01:43]} 3. e3 {[%emt 0:00:12]} Nf6 {[%emt 0:01:03]} 4. b3 {[%emt 0:01:01]} h6 {[%emt 0:01:26] D04: Colle System} (4... Bg4 5. h3 Bh5 6. g4 Bg6 7. Ne5 Nfd7 8. Nxg6 hxg6 9. Bb2 e6 10. Nd2 Bd6 11. Bg2 Qe7 12. c4 {0-1 (31) Rodriguez Vila,A (2490)-Obregon,C (2478) Moron 2013}) 5. Bd3 {[%emt 0:00:20]} e6 {[%emt 0:06:11]} 6. Bb2 {[%emt 0:03:44]} Bd6 {[%emt 0:00:55]} 7. O-O {[%emt 0:00:09]} O-O {[%emt 0:00:18]} 8. Nbd2 {[%emt 0:00:05]} b6 $146 {[%emt 0:01:43]} (8... Nbd7 9. Ne5 Qc7 10. f4 b6 11. Qf3 a5 12. Qh3 Ba6 13. c4 Ne8 14. Rac1 c5 15. g4 f5 16. gxf5 exf5 17. Bxf5 Nxe5 18. dxe5 Be7 19. Be6+ {1-0 (19) Stancu,O (2156)-Rucsandescu,D Eforie Nord 2007}) 9. c4 {[%emt 0:00:48]} Nbd7 {[%emt 0:02:13]} 10. e4 {[%emt 0:07:06]} dxe4 {[%emt 0:04:31]} 11. Nxe4 {[%emt 0:00:03]} Nxe4 {[%emt 0:04:23]} 12. Bxe4 {[%emt 0:00:03]} Bb7 {[%emt 0:00:13]} 13. Ne5 {[%emt 0:05:48]} f5 {[%emt 0:20:05]} (13... Qc7 $11 {keeps the balance.}) 14. Bf3 {[%emt 0:03:25]} Nxe5 {[%emt 0:05:25]} 15. dxe5 {[%emt 0:00:08]} Be7 {[%emt 0:01:24]} 16. Qe1 {[%emt 0:05:45]} Qc7 {[%emt 0:00:54]} 17. b4 {[%emt 0:01:13]} Rfd8 {[%emt 0:06:39]} 18. Qc3 {[%emt 0:00:34]} c5 {[%emt 0:03:58]} 19. b5 {[%emt 0:03:07]} Rd7 {[%emt 0:02:05]} 20. Bxb7 {[%emt 0:12:17]} Qxb7 {[%emt 0:01:05]} 21. Qg3 {[%emt 0:00:08]} Kh7 {[%emt 0:06:45]} 22. Rad1 {[%emt 0:22:38]} Rad8 {[%emt 0:00:43]} 23. Rxd7 {[%emt 0:00:21]} Qxd7 {[%emt 0:07:42]} 24. Qf3 $1 $11 {[%emt 0:01:49]} Qd3 {[%emt 0:00:47]} (24... Qd2 $19 25. Qb3 Rd3) 25. Qb7 {[%emt 0:03:39]} Qd7 {[%emt 0:01:20]} 26. Qa6 {[%emt 0:14:10]} g6 {[%emt 0:04:36]} 27. h3 {[%emt 0:01:11]} h5 {[%emt 0:00:46]} 28. a4 {[%emt 0:00:34]} Qc7 {[%emt 0:01:54]} 29. a5 {[%emt 0:00:25]} Rd2 {[%emt 0:01:41]} 30. Bc3 {[%emt 0:02:49]} Rd3 {[%emt 0:02:39]} 31. axb6 {[%emt 0:01:28]} axb6 {[%emt 0:00:26]} 32. Bb2 {[%emt 0:03:31]} Rd2 {[%emt 0:03:55]} 33. Bc3 {[%emt 0:03:42]} Rd3 {[%emt 0:00:08]} 34. Qa1 {[%emt 0:01:25]} Qd7 {[%emt 0:00:32]} 35. Qc1 {[%emt 0:00:21]} Bf8 {[%emt 0:01:30]} 36. Qc2 {[%emt 0:00:36]} Bh6 {[%emt 0:00:50]} 37. Ra1 {[%emt 0:00:17]} Bf4 {[%emt 0:01:50]} 38. Re1 {[%emt 0:01:14]} Bg5 {[%emt 0:01:22]} 39. Rf1 {[%emt 0:00:58]} Be7 {[%emt 0:01:39]} 40. Kh2 {[%emt 0:00:00]} Bg5 {[%emt 0:01:33]} 41. Kg1 {[%emt 0:10:43]} Be7 {[%emt 0:00:58]} 42. Ra1 {[%emt 0:02:42]} Kg7 {[%emt 0:16:50]} 43. Kf1 {[%emt 0:00:09]} Qd8 $1 {[%emt 0:01:27]} 44. Ke2 {[%emt 0:03:24]} Rd7 {[%emt 0:01:16]} 45. f4 {[%emt 0:01:29]} Qc7 {[%emt 0:01:14]} 46. Rg1 {[%emt 0:01:56]} Kf8 {[%emt 0:05:36]} 47. g4 {[%emt 0:03:14]} hxg4 {[%emt 0:00:45]} 48. hxg4 {[%emt 0:00:13]} Bd8 {[%emt 0:00:29]} 49. Ke3 {[%emt 0:02:24]} Rh7 {[%emt 0:01:56]} 50. Qg2 {[%emt 0:00:13]} Qb7 {[%emt 0:00:18]} 51. Qxb7 {[%emt 0:05:13]} Rxb7 {[%emt 0:00:03]} 52. Rd1 {[%emt 0:00:28]} Be7 {[%emt 0:00:59]} 53. Ra1 {[%emt 0:00:53]} ({Better is} 53. g5 $14) 53... Bd8 {[%emt 0:00:23]} 54. Rh1 {[%emt 0:03:16]} Kg7 {[%emt 0:00:37]} 55. gxf5 {[%emt 0:01:26]} gxf5 {[%emt 0:00:17]} 56. Be1 {[%emt 0:00:21]} (56. Rd1 $1 $14 Be7 57. Ra1) 56... Ra7 {[%emt 0:01:12]} 57. Bc3 {[%emt 0:00:24]} Be7 {[%emt 0:01:18]} 58. Rd1 {[%emt 0:00:38]} Kf7 $11 {[%emt 0:00:12] Kd4} 1/2-1/2